bitfinex/quotes_SOLUSD_20241019
["timestamp","ask_amount","ask_price","bid_price","bid_amount"]
[1729337417430,0.0984458,154.64,154.55,23.776884]
[1729337442272,15.8644,154.62,154.54,6.73410265]
[1729337442573,15.8644,154.62,154.51,12.80818932]
[1729337443062,15.8644,154.62,154.51,19.53167848]
[1729337443655,15.8644,154.62,154.52,23.776884]
[1729337443963,15.8644,154.62,154.52,51.36086951]
[1729337458462,15.8644,154.62,154.53,16.2594]
[1729337458665,0.0984458,154.64,154.54,23.776884]
[1729337497603,0.0984458,154.64,154.56,23.776884]
[1729337497917,0.0984458,154.64,154.58,23.776884]
[1729337510333,0.0984458,154.64,154.6,23.776884]
[1729337529641,0.0984458,154.64,154.59,7.38394909]
[1729337564572,0.0984458,154.64,154.6,43.776884]
[1729337582385,0.0984458,154.64,154.6,50.06507332]
[1729337587372,0.0984458,154.64,154.6,43.776884]
[1729337587572,0.0984458,154.64,154.6,20.0]
[1729337588871,0.0984458,154.64,154.61,23.776884]
[1729337594686,0.0984458,154.64,154.62,20.0]
[1729337595380,0.0984458,154.64,154.59,14.09257028]
[1729337595589,0.0984458,154.64,154.6,23.776884]
[1729337595791,0.0984458,154.64,154.59,14.09257028]
[1729337596192,0.0984458,154.64,154.59,7.38394909]
[1729337611710,0.0984458,154.64,154.57,6.70711006]
[1729337617421,6.3032,154.63,154.57,6.70711006]
[1729337617620,15.9584,154.62,154.57,6.70711006]
[1729337618222,15.9584,154.62,154.52,12.32908932]
[1729337618531,15.9584,154.62,154.54,6.70920609]
[1729337618906,15.9584,154.62,154.55,23.776884]
[1729337621616,0.0984458,154.64,154.56,20.0]
[1729337622810,0.0984458,154.64,154.57,23.776884]
[1729337639143,0.0984458,154.64,154.56,20.0]
[1729337643831,0.0984458,154.64,154.54,43.776884]
[1729337644352,0.0984458,154.64,154.54,50.48242568]
[1729337644644,16.3758,154.62,154.54,26.70554168]
[1729337645030,16.3758,154.62,154.54,6.70554168]
[1729337645446,23.776884,154.61,154.53,7.8515327]
[1729337645755,23.776884,154.61,154.49,22.16110246]
[1729337646452,23.776884,154.61,154.49,15.454]
[1729337647453,6.1604,154.6,154.48,6.0998]
[1729337648351,6.1604,154.6,154.49,23.776884]
[1729337651550,23.776884,154.59,154.48,6.0998]
[1729337653738,23.776884,154.57,154.47,6.70793888]
[1729337653943,23.776884,154.57,154.45,15.454]
[1729337654249,23.776884,154.57,154.45,22.16333434]
[1729337655238,23.776884,154.57,154.46,20.0]
[1729337659361,39.410184,154.55,154.45,6.70933434]
[1729337659559,39.410184,154.55,154.44,7.85589348]
[1729337661440,23.776884,154.53,154.44,7.85589348]
[1729337662254,23.776884,154.5,154.41,6.71106682]
[1729337662473,23.776884,154.5,154.36,15.2938]
[1729337662852,23.776884,154.5,154.37,6.71270972]
[1729337663040,23.776884,154.5,154.37,13.49201015]
[1729337663740,23.776884,154.5,154.38,20.0]
[1729337666449,23.776884,154.5,154.37,6.77930043]
[1729337666648,23.776884,154.5,154.37,20.0]
[1729337668351,30.249484,154.5,154.37,20.0]
[1729337668745,23.776884,154.5,154.37,20.0]
[1729337670171,43.206884,154.5,154.37,20.0]
[1729337670360,20.0,154.49,154.36,15.2938]
[1729337670761,23.776884,154.48,154.36,15.2938]
[1729337671267,23.776884,154.46,154.36,15.2938]
[1729337675368,22.6911,154.47,154.36,15.2938]
[1729337684668,22.6911,154.47,154.37,20.0]
[1729337687998,23.776884,154.5,154.38,6.1969]
[1729337693293,23.776884,154.5,154.38,5.88838572]
[1729337700069,23.776884,154.48,154.36,15.2938]
[1729337700493,23.776884,154.46,154.36,15.2938]
[1729337703576,22.6176,154.47,154.36,15.2938]
[1729337704682,16.1706,154.47,154.36,15.2938]
[1729337705383,23.776884,154.48,154.36,15.2938]
[1729337705893,23.776884,154.49,154.36,15.2938]
[1729337706396,28.86059538,154.51,154.38,6.5164]
[1729337706696,20.0,154.5,154.38,6.5164]
[1729337707093,20.0,154.5,154.39,16.536]
[1729337707291,22.1504,154.51,154.39,16.536]
[1729337708398,23.776884,154.5,154.39,16.536]
[1729337711000,22.1504,154.51,154.39,16.536]
[1729337722986,43.776884,154.5,154.39,16.536]
[1729337729097,50.249384,154.5,154.38,6.5164]
[1729337730600,50.249384,154.5,154.35,22.25820203]
[1729337730789,23.776884,154.48,154.35,22.25820203]
[1729337745926,20.81079002,154.48,154.35,22.25820203]
[1729337748234,20.81079002,154.48,154.36,6.2359]
[1729337749929,16.4428,154.49,154.38,15.8271]
[1729337752518,16.4428,154.49,154.36,12.92205289]
[1729337752519,16.6546,154.53,154.41,15.8271]
[1729337757231,23.776884,154.52,154.41,15.8271]
[1729337761937,16.6546,154.53,154.41,15.8271]
[1729337763528,16.6546,154.53,154.43,6.3739]
[1729337769939,23.776884,154.52,154.43,6.3739]
[1729337770124,23.776884,154.52,154.41,15.8271]
[1729337780745,23.776884,154.52,154.41,22.60640043]
[1729337791181,23.776884,154.52,154.41,15.8271]
[1729337816683,6.3058,154.51,154.41,15.8271]
[1729337816883,23.776884,154.5,154.41,15.8271]
[1729337818194,15.29883423,154.51,154.41,15.8271]
[1729337821801,23.776884,154.5,154.41,15.8271]
[1729337825901,16.5518,154.49,154.39,14.23290823]
[1729337826083,23.776884,154.48,154.39,7.85900823]
[1729337826987,30.250184,154.48,154.37,15.0408]
[1729337827195,6.2301,154.47,154.37,15.0408]
[1729337833794,6.2301,154.47,154.38,23.776884]
[1729337837814,20.0,154.46,154.38,23.776884]
[1729337839824,26.4742,154.46,154.35,6.3819]
[1729337840116,15.8551,154.45,154.36,23.776884]
[1729337841248,20.0,154.43,154.33,23.41540073]
[1729337842044,6.4758,154.42,154.33,23.41540073]
[1729337842242,19.43,154.43,154.33,23.41540073]
[1729337843341,19.43,154.43,154.34,23.776884]
[1729337845816,8.9967768,154.44,154.34,23.776884]
[1729337857927,28.4267768,154.44,154.34,23.776884]
[1729337859643,19.43,154.44,154.34,23.776884]
[1729337865236,6.4754,154.43,154.34,23.776884]
[1729337865422,19.43,154.44,154.34,23.776884]
[1729337867847,20.0,154.43,154.34,23.776884]
[1729337868256,39.43,154.43,154.34,23.776884]
[1729337869251,52.572,154.43,154.34,23.776884]
[1729337869548,59.25850144,154.43,154.34,23.776884]
[1729337870543,30.0,154.41,154.34,23.776884]
[1729337872633,59.25850144,154.43,154.34,23.776884]
[1729337883443,20.0,154.4,154.34,23.776884]
[1729337887650,20.0,154.4,154.34,22.776884]
[1729337889460,39.43,154.4,154.34,22.776884]
[1729337889668,26.0656,154.39,154.29,15.5131]
[1729337889970,28.43473883,154.37,154.29,15.5131]
[1729337890356,9.00473883,154.37,154.29,15.5131]
[1729337891266,9.00473883,154.37,154.27,6.0657]
[1729337891267,6.4788,154.35,154.27,6.0657]
[1729337891567,20.0,154.36,154.27,6.0657]
[1729337891951,9.00473883,154.37,154.28,7.61762335]
[1729337892575,9.00473883,154.37,154.29,23.776884]
[1729337892751,9.00473883,154.37,154.31,23.776884]
[1729337893450,6.69033648,154.42,154.33,23.776884]
[1729337894367,8.99910013,154.44,154.33,23.776884]
[1729337895169,20.0,154.43,154.33,23.776884]
[1729337897173,20.0,154.43,154.32,6.0657]
[1729337897369,26.4754,154.43,154.32,6.0657]
[1729337898153,20.0,154.4,154.32,6.0657]
[1729337898360,26.4769,154.4,154.31,23.776884]
[1729337898779,20.0,154.4,154.31,23.776884]
[1729337900369,20.0,154.38,154.26,0.5229306]
[1729337904078,20.0,154.38,154.28,23.776884]
[1729337904278,20.0,154.38,154.3,23.776884]
[1729337904477,20.0,154.4,154.3,23.776884]
[1729337904769,15.1026,154.43,154.3,23.776884]
[1729337906778,15.68534764,154.44,154.31,26.4439]
[1729337907080,15.68534764,154.44,154.32,23.776884]
[1729337913578,8.99910013,154.44,154.32,23.776884]
[1729337914578,20.0,154.43,154.32,23.776884]
[1729337917665,26.4754,154.43,154.32,23.776884]
[1729337918196,20.0,154.41,154.32,23.776884]
[1729337919182,26.4763,154.41,154.32,23.776884]
[1729337920880,20.0,154.42,154.32,23.776884]
[1729337921083,26.4755,154.43,154.32,23.776884]
[1729337921266,20.0,154.43,154.32,23.776884]
[1729337922483,8.99910013,154.44,154.34,23.776884]
[1729337943690,8.99910013,154.44,154.36,23.776884]
[1729337943897,8.99910013,154.44,154.37,15.5935]
[1729337944118,8.99910013,154.44,154.38,23.776884]
[1729337954131,6.4733,154.48,154.38,23.776884]
[1729337955214,20.0,154.48,154.38,23.776884]
[1729337966557,6.6491,154.49,154.38,23.776884]
[1729337967831,16.2175,154.5,154.38,23.776884]
[1729337968054,20.0,154.49,154.38,23.776884]
[1729337971968,6.4733,154.48,154.38,23.776884]
[1729337972878,6.1901,154.48,154.38,23.776884]
[1729337973033,30.0,154.39,154.38,23.776884]
[1729337973230,30.0,154.39,154.37,15.5935]
[1729337974459,30.0,154.39,154.36,23.776884]
[1729337979978,30.0,154.39,154.35,23.776884]
[1729337982959,20.0,154.44,154.35,23.776884]
[1729337983265,12.6911,154.43,154.34,7.86204618]
[1729337983558,6.2156,154.43,154.34,7.86204618]
[1729337984139,30.0,154.38,154.34,7.86204618]
[1729337984546,6.2156,154.43,154.34,7.86204618]
[1729337984974,12.6913,154.43,154.34,7.86204618]
[1729337985472,26.4761,154.42,154.34,7.86204618]
[1729337985658,15.2552,154.41,154.34,7.86204618]
[1729337986146,15.2552,154.41,154.31,6.5302]
[1729337986147,21.7318,154.41,154.29,15.8118]
[1729337986776,6.4767,154.4,154.29,15.8118]
[1729337987148,20.0,154.39,154.29,15.8118]
[1729337987451,12.6932,154.38,154.27,6.245]
[1729337987901,15.2552,154.37,154.25,22.55867112]
[1729337988050,15.2552,154.37,154.25,15.8118]
[1729337988373,26.4787,154.36,154.25,15.8118]
[1729337988579,30.0,154.35,154.25,15.8118]
[1729337989473,36.4787,154.35,154.25,15.8118]
[1729337989674,30.0,154.35,154.25,15.8118]
[1729337990367,20.0,154.33,154.24,7.1981582]
[1729337990575,30.0,154.32,154.21,15.8118]
[1729337990775,36.2156,154.32,154.21,15.8118]
[1729337993074,30.0,154.32,154.21,15.8118]
[1729337993483,20.0,154.35,154.21,15.8118]
[1729337995479,23.776884,154.34,154.21,15.8118]
[1729337997155,6.2156,154.36,154.22,20.0]
[1729337997355,6.2156,154.36,154.21,15.8118]
[1729337998764,20.0,154.35,154.21,15.8118]
[1729338001083,20.0,154.35,154.25,6.434]
[1729338001590,6.2156,154.36,154.25,6.434]
[1729338003098,22.00213554,154.37,154.25,6.434]
[1729338003099,15.2552,154.37,154.27,16.2687]
[1729338004085,6.4035,154.4,154.27,16.2687]
[1729338004288,6.4035,154.4,154.28,23.776884]
[1729338004494,25.24614725,154.41,154.28,23.776884]
[1729338004699,25.24614725,154.41,154.29,6.0506]
[1729338005587,20.0,154.4,154.3,23.776884]
[1729338005909,25.24614725,154.41,154.3,23.776884]
[1729338006381,8.99914725,154.41,154.31,16.2687]
[1729338008307,8.99914725,154.41,154.32,23.776884]
[1729338008508,16.247,154.45,154.32,23.776884]
[1729338018216,43.776884,154.44,154.32,23.776884]
[1729338025422,43.776884,154.44,154.35,75.0]
[1729338026601,23.776884,154.44,154.35,75.0]
[1729338026809,30.251984,154.44,154.35,75.0]
[1729338027313,30.148684,154.42,154.35,75.0]
[1729338027520,20.0,154.41,154.35,75.0]
[1729338028326,39.44,154.41,154.35,75.0]
[1729338028616,46.327584,154.4,154.35,75.0]
[1729338029625,39.850584,154.4,154.35,75.0]
[1729338030438,43.776884,154.38,154.35,75.0]
[1729338031741,43.776884,154.39,154.35,75.0]
[1729338032234,30.0,154.36,154.35,75.0]
[1729338033014,20.0,154.39,154.35,75.0]
[1729338040048,23.776884,154.41,154.35,75.0]
[1729338047930,23.04036226,154.44,154.35,75.0]
[1729338048425,23.776884,154.43,154.35,75.0]
[1729338057061,16.3252,154.44,154.35,75.0]
[1729338057351,43.776884,154.45,154.35,75.0]
[1729338062838,15.3247,154.48,154.36,29.25760265]
[1729338063043,32.3681,154.51,154.36,29.25760265]
[1729338063254,39.08795509,154.51,154.36,29.25760265]
[1729338064245,23.776884,154.48,154.36,29.25760265]
[1729338066142,20.0,154.49,154.37,23.776884]
[1729338071774,23.776884,154.48,154.36,29.25760265]
[1729338072072,23.776884,154.48,154.36,21.265]
[1729338080676,23.776884,154.46,154.36,21.265]
[1729338084093,20.0,154.45,154.36,21.265]
[1729338084289,23.776884,154.44,154.36,15.0124]
[1729338085179,23.776884,154.44,154.35,75.0]
[1729338085579,23.776884,154.42,154.35,75.0]
[1729338087480,20.0,154.45,154.35,75.0]
[1729338087876,23.776884,154.44,154.35,75.0]
[1729338101821,23.776884,154.42,154.35,75.0]
[1729338102124,23.776884,154.44,154.35,75.0]
[1729338107407,30.251884,154.44,154.35,75.0]
[1729338109732,23.776884,154.42,154.35,75.0]
[1729338121226,20.0,154.44,154.35,75.0]
[1729338121436,6.70287578,154.45,154.35,75.0]
[1729338121813,15.07248172,154.46,154.35,75.0]
[1729338122026,8.99728172,154.46,154.36,21.7707]
[1729338124622,8.99728172,154.46,154.37,23.776884]
[1729338126643,8.99728172,154.46,154.38,15.4173]
[1729338127345,8.99728172,154.46,154.39,6.3534]
[1729338128144,15.7386,154.51,154.4,23.776884]
[1729338128326,6.3157,154.53,154.41,15.4173]
[1729338129322,15.7386,154.55,154.41,15.4173]
[1729338130456,43.776884,154.54,154.41,15.4173]
[1729338130821,15.7386,154.55,154.42,30.130284]
[1729338131243,6.3157,154.57,154.44,23.776884]
[1729338133350,20.0,154.56,154.44,23.776884]
[1729338140031,6.3157,154.57,154.44,23.776884]
[1729338140354,20.0,154.56,154.44,23.776884]
[1729338146137,20.0,154.56,154.43,15.4173]
[1729338146138,23.776884,154.55,154.43,15.4173]
[1729338146343,23.776884,154.55,154.44,20.0]
[1729338147961,30.247284,154.55,154.44,20.0]
[1729338150664,23.776884,154.55,154.44,20.0]
[1729338151746,22.9051,154.54,154.43,15.4173]
[1729338152444,23.776884,154.53,154.43,15.4173]
[1729338152766,30.249084,154.51,154.39,15.2213]
[1729338153064,6.4725,154.5,154.39,15.2213]
[1729338153660,30.0,154.44,154.39,15.2213]
[1729338153975,30.248984,154.51,154.39,15.2213]
[1729338162678,23.776884,154.51,154.39,15.2213]
[1729338163265,20.0,154.51,154.4,23.776884]
[1729338177185,45.443884,154.5,154.39,15.2213]
[1729338177480,54.43817607,154.5,154.39,15.2213]
[1729338186698,47.96527607,154.5,154.39,15.2213]
[1729338205912,47.96527607,154.5,154.35,96.96540164]
[1729338206117,23.776884,154.48,154.36,20.0]
[1729338209522,20.0,154.49,154.36,20.0]
[1729338209728,20.0,154.49,154.38,21.7728]
[1729338210833,24.18839207,154.5,154.39,23.776884]
[1729338211030,24.18839207,154.5,154.4,20.0]
[1729338211232,8.99429207,154.5,154.4,20.0]
[1729338214619,6.1983,154.52,154.4,20.0]
[1729338249442,15.4519,154.5,154.38,28.4858691]
[1729338250964,15.4519,154.5,154.39,20.0]
[1729338261750,6.1983,154.52,154.42,15.7164]
[1729338285896,15.2839,154.54,154.44,6.6479]
[1729338286077,15.2839,154.54,154.45,23.776884]
[1729338294108,15.2839,154.54,154.44,6.6479]
[1729338304610,15.2839,154.54,154.42,15.7164]
[1729338304811,30.294884,154.53,154.42,15.7164]
[1729338305799,36.766184,154.53,154.42,15.7164]
[1729338306016,23.776884,154.51,154.41,26.71225195]
[1729338306323,23.776884,154.51,154.39,20.0]
[1729338306994,15.3734,154.52,154.39,20.0]
[1729338307394,30.0,154.44,154.39,20.0]
[1729338307621,15.3734,154.52,154.39,20.0]
[1729338308301,15.3734,154.52,154.4,23.776884]
[1729338308521,15.3734,154.52,154.41,20.0]
[1729338314808,43.776884,154.51,154.38,30.04801733]
[1729338315024,50.248984,154.51,154.39,20.0]
[1729338317138,30.0,154.43,154.39,20.0]
[1729338317630,20.0,154.51,154.4,23.776884]
[1729338323506,15.3734,154.52,154.4,23.776884]
[1729338328926,15.3734,154.52,154.41,6.1569]
[1729338329237,15.3734,154.52,154.42,23.776884]
[1729338329541,15.3734,154.52,154.43,16.4195]
[1729338331958,8.99324793,154.54,154.44,23.776884]
[1729338332151,8.99324793,154.54,154.45,20.0]
[1729338333457,8.99324793,154.54,154.46,23.776884]
[1729338334161,8.99324793,154.54,154.46,29.933784]
[1729338341052,6.4684,154.6,154.48,23.776884]
[1729338341053,20.0,154.59,154.48,23.776884]
[1729338341528,20.0,154.59,154.47,24.22788419]
[1729338347862,15.46,154.6,154.48,23.776884]
[1729338352262,15.46,154.6,154.49,6.017]
[1729338357266,15.46,154.6,154.5,23.776884]
[1729338365870,15.46,154.6,154.52,43.776884]
[1729338370077,15.46,154.6,154.52,20.0]
[1729338378263,15.46,154.6,154.51,15.7048]
[1729338380589,15.46,154.6,154.49,6.017]
[1729338394808,15.46,154.6,154.5,75.0]
[1729338396611,6.4897,154.61,154.51,15.2361]
[1729338396904,0.0984458,154.64,154.52,23.776884]
[1729338396905,35.3328458,154.64,154.52,23.776884]
[1729338397086,35.3328458,154.64,154.52,43.776884]
[1729338415204,15.3328458,154.64,154.52,43.776884]
[1729338419808,15.3328458,154.64,154.53,6.1518]
[1729338421337,15.3328458,154.64,154.54,15.0695]
[1729338429018,0.0984458,154.64,154.54,15.0695]
[1729338430321,0.0984458,154.64,154.55,43.776884]
[1729338430519,0.0984458,154.64,154.55,51.76948665]
[1729338433833,0.0984458,154.64,154.57,43.776884]
[1729338434136,0.0984458,154.64,154.58,16.0626]
[1729338451848,0.0984458,154.64,154.56,6.3954]
[1729338452052,0.0984458,154.64,154.55,7.99260265]
[1729338452950,22.1485,154.63,154.53,14.52753858]
[1729338470341,22.1485,154.63,154.54,23.776884]
[1729338483989,15.7036,154.63,154.55,20.0]
[1729338505289,15.7036,154.63,154.55,19.0]
[1729338509693,0.0984458,154.64,154.55,19.0]
[1729338509694,0.0984458,154.64,154.56,23.776884]
[1729338510878,0.0984458,154.64,154.57,20.0]
[1729338511081,0.0984458,154.64,154.58,23.776884]
[1729338513194,0.0984458,154.64,154.59,20.0]
[1729338517596,0.0984458,154.64,154.56,7.99260265]
[1729338517791,0.0984458,154.64,154.53,14.45072662]
[1729338518798,0.0984458,154.64,154.55,23.776884]
[1729338519898,0.0984458,154.64,154.56,20.0]
[1729338528216,0.0984458,154.64,154.55,23.776884]
[1729338528423,0.0984458,154.64,154.53,14.45072662]
[1729338528598,16.3401,154.63,154.54,6.67340082]
[1729338528920,6.1829,154.62,154.53,7.85232662]
[1729338531391,16.3401,154.63,154.53,7.85232662]
[1729338542727,16.3401,154.63,154.52,43.776884]
[1729338543297,16.3401,154.63,154.52,20.0]
[1729338543497,6.4138,154.62,154.52,20.0]
[1729338546924,6.4138,154.62,154.53,23.776884]
[1729338547104,16.3401,154.63,154.53,23.776884]
[1729338547105,16.3401,154.63,154.53,31.62862065]
[1729338547505,16.3401,154.63,154.54,15.1976]
[1729338548816,16.3401,154.63,154.55,23.776884]
[1729338551848,16.3401,154.63,154.54,15.1976]
[1729338556623,16.3401,154.63,154.53,13.87373665]
[1729338557253,23.776884,154.62,154.53,7.85173665]
[1729338557431,29.852984,154.62,154.53,7.85173665]
[1729338557626,36.320384,154.62,154.53,7.85173665]
[1729338560028,23.776884,154.6,154.53,7.85173665]
[1729338560228,36.320384,154.62,154.53,7.85173665]
[1729338564358,29.852984,154.62,154.53,7.85173665]
[1729338564850,23.776884,154.6,154.53,7.85173665]
[1729338565034,15.3057,154.59,154.5,90.1976]
[1729338566457,23.776884,154.58,154.5,75.0]
[1729338566665,30.166984,154.58,154.5,75.0]
[1729338570137,23.776884,154.56,154.5,75.0]
[1729338570342,39.15568256,154.58,154.5,75.0]
[1729338574347,8.98869856,154.58,154.5,75.0]
[1729338577859,8.98869856,154.58,154.51,22.9708]
[1729338578661,16.5996,154.63,154.51,22.9708]
[1729338579052,16.5996,154.63,154.52,43.776884]
[1729338588456,0.0984458,154.64,154.52,43.776884]
[1729338588857,0.0984458,154.64,154.52,51.76948665]
[1729338589050,0.0984458,154.64,154.54,23.776884]
[1729338591162,0.0984458,154.64,154.56,6.6506]
[1729338591868,0.0984458,154.64,154.57,20.0]
[1729338593646,0.0984458,154.64,154.56,6.6506]
[1729338594777,8.83269959,154.66,154.56,6.6506]
[1729338595359,20.0,154.65,154.54,23.776884]
[1729338596576,8.83269959,154.66,154.54,23.776884]
[1729338616790,8.83269959,154.66,154.53,24.40400528]
[1729338616971,20.0,154.64,154.53,24.40400528]
[1729338617288,39.267784,154.63,154.53,24.40400528]
[1729338620093,30.244784,154.61,154.51,6.73890396]
[1729338620291,30.244784,154.61,154.5,75.0]
[1729338620472,23.776884,154.59,154.5,75.0]
[1729338621501,15.4909,154.58,154.5,75.0]
[1729338621678,23.776884,154.57,154.5,75.0]
[1729338622676,20.0,154.56,154.5,75.0]
[1729338634401,23.776884,154.55,154.5,75.0]
[1729338636699,20.0,154.54,154.5,75.0]
[1729338644003,6.4713,154.53,154.5,75.0]
[1729338644396,20.0,154.54,154.5,75.0]
[1729338644595,26.4708,154.54,154.5,75.0]
[1729338645005,23.776884,154.53,154.5,75.0]
[1729338645201,46.337684,154.53,154.5,75.0]
[1729338647512,39.866384,154.53,154.5,75.0]
[1729338648213,20.0,154.52,154.5,75.0]
[1729338650696,26.4716,154.52,154.5,75.0]
[1729338651507,20.0,154.52,154.5,75.0]
[1729338651907,26.4716,154.52,154.5,75.0]
[1729338652111,50.248884,154.51,154.5,75.0]
[1729338655216,43.776884,154.51,154.5,75.0]
[1729338657218,50.248884,154.51,154.5,75.0]
[1729338662415,56.94930789,154.51,154.5,75.0]
[1729338669301,76.37930789,154.51,154.5,75.0]
[1729338672816,77.50534229,154.51,154.5,75.0]
[1729338681812,106.52142872,154.51,154.5,70.5179]
[1729338682012,112.81142493,154.51,154.5,67.241]
[1729338682230,120.62010058,154.51,154.5,21.1498]
[1729338682419,6.4755,154.43,154.38,6.4773]
[1729338682621,20.0,154.42,154.38,6.4773]
[1729338683223,20.0,154.42,154.37,38.4392]
[1729338685835,20.0,154.42,154.37,31.9614]
[1729338686014,20.0,154.42,154.38,6.4774]
[1729338691518,23.776884,154.41,154.37,31.9614]
[1729338691723,20.0,154.4,154.37,31.9614]
[1729338691932,20.0,154.4,154.39,6.4771]
[1729338692127,20.0,154.42,154.41,6.4759]
[1729338692331,20.0,154.42,154.37,15.7672]
[1729338692332,23.11409376,154.47,154.37,15.7672]
[1729338692656,23.11409376,154.47,154.36,6.3331]
[1729338692657,29.82555374,154.47,154.42,23.0136]
[1729338693249,36.29935374,154.47,154.42,23.0136]
[1729338693749,23.776884,154.46,154.42,23.0136]
[1729338693960,20.0,154.46,154.43,6.475]
[1729338695758,20.0,154.46,154.42,16.5382]
[1729338695931,20.0,154.46,154.44,6.4749]
[1729338696842,20.0,154.46,154.44,6.475]
[1729338698757,20.0,154.46,154.43,16.1885]
[1729338699341,20.0,154.46,154.42,23.0139]
[1729338704266,20.0,154.44,154.42,16.5382]
[1729338704769,39.43,154.44,154.38,16.3153]
[1729338705067,20.0,154.42,154.38,22.7927]
[1729338705647,20.0,154.44,154.4,6.4763]
[1729338707467,20.0,154.43,154.4,6.4763]
[1729338708750,20.0,154.43,154.41,6.476]
[1729338709277,20.0,154.44,154.41,6.476]
[1729338710667,6.4755,154.43,154.38,22.7925]
[1729338710976,20.0,154.42,154.4,6.4766]
[1729338711271,20.0,154.44,154.4,6.4766]
[1729338712255,26.475,154.44,154.39,6.477]
[1729338713449,23.776884,154.43,154.39,6.477]
[1729338713657,20.0,154.42,154.39,6.477]
[1729338720966,20.0,154.42,154.4,6.4764]
[1729338723869,20.0,154.42,154.39,22.6692]
[1729338724070,20.0,154.42,154.39,16.1922]
[1729338726279,26.4758,154.42,154.38,16.3153]
[1729338726467,26.4758,154.42,154.38,22.7927]
[1729338727350,20.0,154.42,154.38,22.7927]
[1729338729262,20.0,154.42,154.39,6.4769]
[1729338730670,20.0,154.42,154.4,6.4766]
[1729338735203,20.0,154.42,154.38,16.3153]
[1729338735360,20.0,154.42,154.41,6.4762]
[1729338737455,13.20053141,154.46,154.41,6.4762]
[1729338737687,20.0,154.45,154.38,16.3153]
[1729338737970,20.0,154.45,154.43,6.475]
[1729338741462,20.0,154.45,154.42,31.7313]
[1729338743385,26.4745,154.45,154.42,31.7313]
[1729338743581,20.0,154.45,154.42,31.7313]
[1729338745687,20.0,154.45,154.42,38.2068]
[1729338746382,20.0,154.45,154.42,31.7313]
[1729338746683,20.0,154.45,154.43,6.4752]
[1729338747182,20.0,154.46,154.43,6.4752]
[1729338752982,20.0,154.46,154.44,6.4749]
[1729338754193,20.0,154.46,154.44,6.475]
[1729338760477,20.0,154.46,154.43,16.1885]
[1729338760678,20.0,154.46,154.43,22.6635]
[1729338761581,20.0,154.46,154.44,6.4749]
[1729338769200,20.0,154.46,154.43,22.6638]
[1729338771712,26.4741,154.46,154.43,16.1885]
[1729338771999,6.4746,154.45,154.4,6.4766]
[1729338772302,26.4752,154.44,154.4,16.1916]
[1729338773202,6.4754,154.43,154.39,16.1233]
[1729338773386,20.0,154.42,154.39,16.1233]
[1729338774189,20.0,154.42,154.37,16.1947]
[1729338774690,26.4758,154.42,154.37,22.6724]
[1729338778108,20.0,154.4,154.35,16.1233]
[1729338778285,26.4762,154.42,154.35,16.1233]
[1729338779486,26.4762,154.42,154.36,6.4779]
[1729338780481,30.253284,154.41,154.36,6.4779]
[1729338780688,20.0,154.4,154.36,6.4779]
[1729338781707,20.0,154.44,154.35,16.1233]
[1729338781907,20.0,154.42,154.38,6.4773]
[1729338782080,6.4756,154.43,154.38,6.4773]
[1729338782281,23.776884,154.44,154.35,16.1233]
[1729338782486,30.251884,154.44,154.38,22.6707]